[Event "EYCC 2017"]
[Site "Mamaia"]
[Date "2017.09.13"]
[Round "8"]
[White "Ciolacu, Alessia-Mihaela"]
[Black "Eizaguerri Floris, Maria"]
[Result "0-1"]
[ECO "D38"]
[WhiteElo "1787"]
[BlackElo "2098"]
[Annotator "NA RC"]
[PlyCount "94"]
[EventDate "2017.??.??"]
[EventType "swiss"]
[EventCountry "ROU"]
[SourceTitle "playchess.com"]
[Source "ChessBase"]
[SourceQuality "1"]
[TimeControl "40/5400+30:1800+30"]

1. d4 {[%emt 0:00:00]} d5 {[%emt 0:00:06]} 2. c4 {[%emt 0:00:00]} e6 {[%emt 0:00:07]} 3. Nc3 {[%emt 0:00:00]} Nf6 {[%emt 0:00:05]} 4. Nf3 {[%emt 0:00:24]} Bb4 {[%emt 0:00:05]} 5. Qa4+ {[%emt 0:00:35]} Nc6 {[%emt 0:00:08]} 6. e3 {[%emt 0:00:30]} O-O {[%emt 0:06:34]} 7. Qc2 {[%emt 0:00:24] D38: Queen's Gambit Declined: Ragozin Defence (4 Nf3 Bb4)} Ne4 {[%emt 0:03:30]} (7... Re8 8. Bd2 a6 9. h3 Bd6 10. a3 Bd7 11. Be2 dxc4 12. Bxc4 h6 13. O-O e5 14. Rae1 Qe7 {½-½ (53) Aronian,L (2793)-Giri,A (2771) Stavanger 2017}) 8. Bd3 {[%emt 0:05:10]} f5 {[%emt 0:03:08]} 9. a3 {[%emt 0:02:05]} Bxc3+ {[%emt 0:00:33]} 10. bxc3 {[%emt 0:00:10]} Qe8 $146 {[%emt 0:07:51]} ({Predecessor:} 10... Na5 11. Ne5 b6 12. O-O Ba6 13. cxd5 Bxd3 14. Qxd3 exd5 {½-½ (50) Ambartsumova,K (2325)-Sousa,A (2385) Pontevedra 2017}) 11. Bb2 {[%emt 0:13:32]} Qg6 {[%emt 0:05:45]} 12. Nh4 {[%emt 0:10:01]} (12. O-O $16) 12... Qg5 {[%emt 0:09:48]} 13. g3 {[%emt 0:01:49]} Bd7 {[%emt 0:03:07]} ({Black should try} 13... dxc4 $11 14. Bxc4 b6) 14. Ng2 {[%emt 0:10:21]} Rae8 {[%emt 0:08:13]} 15. Nf4 {[%emt 0:06:05]} Nf6 {[%emt 0:03:42]} 16. cxd5 {[%emt 0:02:37]} Nxd5 {[%emt 0:01:43]} 17. c4 {[%emt 0:01:33]} Nf6 {[%emt 0:10:14]} 18. d5 Nd8 $1 {[%emt 0:01:36]} 19. h4 {[%emt 0:30:00]} Qh6 {[%emt 0:00:10]} 20. dxe6 {[%emt 0:00:34]} Nxe6 {[%emt 0:00:50]} 21. Nd5 $15 {[%emt 0:01:40]} (21. Bxf5 $14 Nxf4 22. gxf4) 21... Ne4 {[%emt 0:12:34]} 22. Bxe4 {[%emt 0:05:41]} fxe4 {[%emt 0:00:05]} 23. Qxe4 {[%emt 0:00:07]} Nc5 {[%emt 0:01:21]} 24. Ne7+ {[%emt 0:05:57]} Kh8 {[%emt 0:10:37]} 25. Qd4 {[%emt 0:01:30]} b6 {[%emt 0:01:19]} 26. Nd5 Nb3 {[%emt 0:01:24]} 27. Qxg7+ {[%emt 0:01:07]} Qxg7 {[%emt 0:00:09]} 28. Bxg7+ {[%emt 0:00:05]} Kxg7 {[%emt 0:00:05]} 29. Rb1 {[%emt 0:00:48]} Nc5 {[%emt 0:00:57]} 30. O-O {[%emt 0:00:49]} c6 {[%emt 0:00:42]} 31. Nf4 {[%emt 0:01:06]} Re4 {[%emt 0:03:39]} 32. Rbc1 {[%emt 0:00:30]} Ne6 {[%emt 0:01:12]} 33. Rfd1 {[%emt 0:00:28]} Rf7 {[%emt 0:01:01]} 34. Ne2 {[%emt 0:00:49]} Re5 {[%emt 0:02:24]} 35. Kg2 {[%emt 0:00:19]} Ref5 {[%emt 0:00:41]} 36. f4 {[%emt 0:00:23]} Ra5 {[%emt 0:00:30]} 37. Rc3 {[%emt 0:00:24]} Nc5 {[%emt 0:00:57]} 38. Kf3 {[%emt 0:00:37]} h5 {[%emt 0:00:27]} 39. Rd4 {[%emt 0:00:41]} Re7 {[%emt 0:01:06]} 40. Kf2 {[%emt 0:00:00]} Ne4+ {[%emt 0:00:11]} 41. Rxe4 {[%emt 0:01:00]} Rxe4 {[%emt 0:00:04]} 42. Kf3 {[%emt 0:00:12]} Re8 {[%emt 0:00:16]} 43. Nd4 {[%emt 0:00:49]} c5 {[%emt 0:00:50]} 44. Nb5 {[%emt 0:01:39]} Bxb5 {[%emt 0:00:20]} 45. cxb5 {[%emt 0:00:04]} Rxb5 {[%emt 0:00:07]} 46. g4 {[%emt 0:00:31]} hxg4+ {[%emt 0:01:00]} 47. Kxg4 {[%emt 0:00:05]} Rb1 {[%emt 0:00:54]} 0-1

[Event "EYCC 2017"]
[Site "Mamaia"]
[Date "2017.09.13"]
[Round "8"]
[White "Dubovyk, Anastasiia"]
[Black "Allahverdiyeva, Ayan"]
[Result "0-1"]
[ECO "C02"]
[WhiteElo "1785"]
[BlackElo "2042"]
[Annotator "NA RC"]
[PlyCount "74"]
[EventDate "2017.??.??"]
[EventType "swiss"]
[EventCountry "ROU"]
[SourceTitle "playchess.com"]
[Source "ChessBase"]
[SourceQuality "1"]
[TimeControl "40/5400+30:1800+30"]

1. e4 {[%emt 0:00:00]} e6 {[%emt 0:00:28]} 2. d4 {[%emt 0:00:00]} d5 {[%emt 0:00:03]} 3. e5 {[%emt 0:00:00]} c5 {[%emt 0:00:03]} 4. c3 {[%emt 0:00:00]} Nc6 {[%emt 0:00:02]} 5. Nf3 {[%emt 0:00:00]} Qb6 {[%emt 0:00:04]} 6. a3 {[%emt 0:00:02]} f6 {[%emt 0:00:35]} 7. b4 {[%emt 0:06:36]} fxe5 {[%emt 0:00:21]} 8. dxe5 {[%emt 0:01:55]} Nh6 {[%emt 0:00:41]} 9. Bf4 {[%emt 0:09:57]} (9. b5 $11 Na5 10. c4) 9... Nf7 {[%emt 0:00:29]} 10. Bd3 {[%emt 0:10:43]} c4 {[%emt 0:02:51]} 11. Bc2 {[%emt 0:01:05]} g6 {[%emt 0:00:34]} 12. O-O {[%emt 0:02:23]} Bg7 {[%emt 0:00:14]} 13. Re1 {[%emt 0:01:03]} O-O {[%emt 0:00:39]} 14. Nbd2 {[%emt 0:13:04]} ({White should play} 14. Qd2 $1 $14) 14... a5 {[%emt 0:04:58]} 15. Re2 {[%emt 0:12:47]} (15. Rc1 $11) 15... axb4 {[%emt 0:00:25]} 16. cxb4 {[%emt 0:01:03]} Qc7 {[%emt 0:05:48]} 17. Qe1 {[%emt 0:01:53]} b5 {[%emt 0:00:49]} 18. h4 {[%emt 0:04:32]} Ra6 $19 {[%emt 0:14:46]} 19. h5 {[%emt 0:06:32]} g5 {[%emt 0:00:21]} 20. Bxg5 {[%emt 0:04:12]} Ncxe5 {[%emt 0:02:48]} 21. h6 {[%emt 0:13:53]} Nxf3+ {[%emt 0:01:52]} 22. Nxf3 {[%emt 0:00:16]} Nxh6 {[%emt 0:00:29]} 23. Bxh6 {[%emt 0:03:12]} Bxh6 {[%emt 0:00:10]} 24. Re5 {[%emt 0:02:12]} Rxf3 {[%emt 0:08:35]} 25. gxf3 {[%emt 0:00:56]} Qg7+ {[%emt 0:00:09]} 26. Kf1 {[%emt 0:01:18]} Bd2 {[%emt 0:01:52]} 27. Qxd2 {[%emt 0:01:51]} Qxe5 {[%emt 0:00:05]} 28. Re1 {[%emt 0:00:22]} Qf6 {[%emt 0:03:51]} 29. f4 {[%emt 0:01:07]} Rxa3 {[%emt 0:02:50]} 30. Re5 {[%emt 0:00:40]} Rf3 {[%emt 0:01:28]} 31. Rg5+ {[%emt 0:00:37]} Kh8 {[%emt 0:01:58]} 32. Rh5 {[%emt 0:00:35]} Qxf4 {[%emt 0:02:11]} 33. Rxh7+ {[%emt 0:00:42]} Kg8 {[%emt 0:00:10]} 34. Qe1 {[%emt 0:00:36]} e5 {[%emt 0:02:23]} 35. Rh5 {[%emt 0:00:48]} Bh3+ {[%emt 0:00:23]} 36. Ke2 {[%emt 0:00:21]} Bg4 {[%emt 0:00:17]} 37. Bh7+ {[%emt 0:00:37]} Kg7 {[%emt 0:00:35]} 0-1

[Event "EYCC 2017"]
[Site "Mamaia"]
[Date "2017.09.13"]
[Round "8"]
[White "Klimkowski, Jan"]
[Black "Samadov, Read"]
[Result "0-1"]
[ECO "B90"]
[WhiteElo "1761"]
[BlackElo "1848"]
[Annotator "NA RC"]
[PlyCount "72"]
[EventDate "2017.??.??"]
[EventType "swiss"]
[EventCountry "ROU"]
[SourceTitle "playchess.com"]
[Source "ChessBase"]
[SourceQuality "1"]
[TimeControl "40/5400+30:1800+30"]

1. e4 {[%emt 0:00:00]} c5 {[%emt 0:00:04]} 2. Nf3 {[%emt 0:00:00]} d6 {[%emt 0:00:08]} 3. d4 {[%emt 0:00:00]} cxd4 {[%emt 0:00:09]} 4. Nxd4 {[%emt 0:00:14]} Nf6 {[%emt 0:00:06]} 5. Nc3 {[%emt 0:00:08]} a6 {[%emt 0:00:05]} 6. f3 {[%emt 0:00:19]} e5 {[%emt 0:02:23]} 7. Nb3 {[%emt 0:00:10]} Be6 {[%emt 0:02:15]} 8. Be3 {[%emt 0:00:11]} Nbd7 {[%emt 0:01:01]} 9. Qd2 {[%emt 0:00:22]} b5 {[%emt 0:03:58]} 10. g4 {[%emt 0:02:42]} Nb6 {[%emt 0:03:59]} 11. g5 {[%emt 0:04:42]} Nfd7 {[%emt 0:01:02]} 12. Nd5 {[%emt 0:00:57]} Rc8 {[%emt 0:04:09] B90: Sizilianisch (Najdorf-Variante, Abweichungen)} 13. Na5 {[%emt 0:12:37]} Nxd5 {[%emt 0:05:51] [#]} 14. Nb7 $146 {[%emt 0:05:43]} ({Vorgänger:} 14. exd5 Bxd5 15. Qxd5 Qxa5+ 16. c3 Be7 17. a4 O-O 18. Bh3 Qd8 19. axb5 axb5 20. Ra7 {½-½ (50) Apicella,M (2553)-Kosten,A (2522) Saint Affrique 2005}) 14... Qc7 {[%emt 0:19:15]} 15. exd5 {[%emt 0:01:07]} Bf5 {[%emt 0:09:00]} 16. Na5 {[%emt 0:04:11]} Nb6 {[%emt 0:07:20]} 17. c4 {[%emt 0:09:03]} Nxc4 {[%emt 0:06:16]} 18. Nxc4 {[%emt 0:00:46]} bxc4 {[%emt 0:00:01]} 19. Rc1 {[%emt 0:00:55]} Qb7 {[%emt 0:02:58]} 20. Rxc4 {[%emt 0:03:00]} Rxc4 {[%emt 0:01:15]} 21. Bxc4 {[%emt 0:00:21]} Be7 {[%emt 0:01:31]} 22. Kf2 {[%emt 0:05:27]} O-O {[%emt 0:01:17]} 23. Kg3 {[%emt 0:03:35]} Bg6 {[%emt 0:05:36]} 24. h4 {[%emt 0:08:17]} Bh5 {[%emt 0:01:33]} 25. Rf1 {[%emt 0:07:22]} Qd7 {[%emt 0:03:18]} (25... f6 $15) 26. Be2 $11 {[%emt 0:03:33]} Qb7 {[%emt 0:04:43]} 27. Rc1 {[%emt 0:11:00]} f6 {[%emt 0:01:31]} 28. Rc6 {[%emt 0:02:36]} fxg5 {[%emt 0:00:37]} 29. Bxg5 {[%emt 0:03:26]} Bxg5 {[%emt 0:01:07]} 30. Qxg5 {[%emt 0:01:19]} Qxb2 {[%emt 0:01:38]} 31. Rc7 {[%emt 0:01:43]} e4 {[%emt 0:00:52]} 32. Bd1 {[%emt 0:05:46]} exf3 {[%emt 0:01:52]} 33. Bc2 {[%emt 0:01:07]} Qd4 {[%emt 0:01:40]} 34. Bxh7+ {[%emt 0:01:41]} Kxh7 {[%emt 0:00:15]} 35. Qxh5+ {[%emt 0:00:38]} Kg8 {[%emt 0:00:05]} 36. Rc1 {[%emt 0:00:49]} Qf4+ {[%emt 0:00:07]} 0-1

[Event "EYCC 2017"]
[Site "Mamaia"]
[Date "2017.09.13"]
[Round "8"]
[White "Bondareva, Daria"]
[Black "Tsotsonava, Elene"]
[Result "0-1"]
[ECO "B34"]
[WhiteElo "1754"]
[BlackElo "1644"]
[Annotator "NA RC"]
[PlyCount "114"]
[EventDate "2017.??.??"]
[EventType "swiss"]
[EventCountry "ROU"]
[SourceTitle "playchess.com"]
[Source "ChessBase"]
[SourceQuality "1"]
[TimeControl "40/5400+30:1800+30"]

1. e4 {[%emt 0:00:00]} c5 {[%emt 0:00:03]} 2. Nf3 {[%emt 0:00:00]} Nc6 {[%emt 0:00:04]} 3. d4 {[%emt 0:00:00]} cxd4 {[%emt 0:00:03]} 4. Nxd4 {[%emt 0:00:00]} Nf6 {[%emt 0:00:06]} 5. Nc3 {[%emt 0:00:00]} e5 {[%emt 0:00:04]} 6. Ndb5 {[%emt 0:00:00]} d6 {[%emt 0:00:07]} 7. Nd5 {[%emt 0:00:00]} Nxd5 {[%emt 0:00:39]} 8. exd5 {[%emt 0:00:03]} Ne7 {[%emt 0:13:56]} 9. c4 {[%emt 0:00:37]} Ng6 {[%emt 0:03:20]} 10. Bd3 {[%emt 0:06:48]} Be7 {[%emt 0:05:51]} 11. O-O {[%emt 0:00:46]} f5 {[%emt 0:02:46]} 12. f3 {[%emt 0:09:41]} O-O {[%emt 0:01:03]} 13. Be3 {[%emt 0:01:09]} a6 {[%emt 0:05:18]} 14. Nc3 {[%emt 0:00:30]} Bg5 {[%emt 0:00:13]} 15. Qe1 {[%emt 0:13:40]} Bxe3+ {[%emt 0:01:26]} 16. Qxe3 {[%emt 0:00:03]} Nf4 {[%emt 0:00:12]} 17. Ne2 {[%emt 0:03:04]} Nxe2+ {[%emt 0:11:07]} 18. Bxe2 {[%emt 0:09:22]} f4 {[%emt 0:00:47]} 19. Qf2 {[%emt 0:04:38]} Bf5 {[%emt 0:03:33]} 20. Rfd1 {[%emt 0:05:38]} Rc8 {[%emt 0:03:07]} 21. Rac1 {[%emt 0:03:09]} Qg5 {[%emt 0:24:19]} 22. b4 {[%emt 0:05:52]} e4 {[%emt 0:03:38]} 23. fxe4 {[%emt 0:07:39]} Bxe4 {[%emt 0:00:20]} 24. Bf3 {[%emt 0:00:58]} Bxf3 {[%emt 0:05:07]} 25. Qxf3 {[%emt 0:00:06]} Rce8 {[%emt 0:02:11]} 26. Re1 {[%emt 0:05:29]} Re5 {[%emt 0:05:11]} 27. Rxe5 {[%emt 0:08:11]} Qxe5 {[%emt 0:00:05]} 28. Qc3 {[%emt 0:08:04]} Qg5 {[%emt 0:03:55]} 29. Qd2 {[%emt 0:05:23]} Qg4 {[%emt 0:01:06]} 30. h3 {[%emt 0:00:40]} Qg3 {[%emt 0:00:59]} 31. Rc3 {[%emt 0:02:56]} f3 {[%emt 0:00:25]} 32. Qf2 {[%emt 0:00:15]} Qxg2+ {[%emt 0:01:56]} 33. Qxg2 {[%emt 0:00:10]} fxg2 {[%emt 0:00:04]} 34. Kxg2 Rf5 {[%emt 0:01:28]} 35. Kg3 {[%emt 0:01:58]} Kf7 {[%emt 0:01:30]} 36. Re3 {[%emt 0:00:30]} b5 {[%emt 0:00:28]} 37. cxb5 {[%emt 0:00:07]} axb5 {[%emt 0:00:02]} 38. Rd3 {[%emt 0:00:33]} Kf6 {[%emt 0:01:02]} 39. a3 {[%emt 0:00:51]} Ke5 {[%emt 0:00:17]} 40. Kg4 {[%emt 0:00:00]} g6 {[%emt 0:00:58]} 41. Re3+ {[%emt 0:10:23]} Kxd5 {[%emt 0:01:49]} 42. Re7 {[%emt 0:00:09]} h6 {[%emt 0:08:43]} 43. Rg7 {[%emt 0:07:59]} Rg5+ {[%emt 0:00:40]} 44. Kh4 {[%emt 0:00:11]} Ke4 {[%emt 0:03:51]} 45. Rf7 {[%emt 0:05:16]} Kd4 {[%emt 0:06:11]} 46. Rc7 {[%emt 0:03:25]} Ke4 {[%emt 0:01:48]} 47. Rf7 {[%emt 0:00:12]} d5 {[%emt 0:00:08]} 48. a4 {[%emt 0:01:04]} bxa4 {[%emt 0:00:34]} 49. b5 {[%emt 0:01:50]} d4 {[%emt 0:00:32]} 50. Ra7 {[%emt 0:01:56]} Rxb5 {[%emt 0:00:23]} 51. Rxa4 {[%emt 0:00:03]} Ke3 {[%emt 0:01:30]} 52. Ra6 {[%emt 0:00:32]} d3 {[%emt 0:03:15]} 53. Re6+ {[%emt 0:03:50]} Kf2 {[%emt 0:01:39]} 54. Rxg6 {[%emt 0:00:38]} d2 {[%emt 0:00:16]} 55. Rg4 {[%emt 0:00:34]} d1=Q {[%emt 0:05:04]} 56. Rf4+ {[%emt 0:00:03]} Kg1 {[%emt 0:00:28]} 57. Rg4+ {[%emt 0:00:30]} Qxg4+ {[%emt 0:00:20]} 0-1

[Event "EYCC 2017"]
[Site "Mamaia"]
[Date "2017.09.13"]
[Round "8"]
[White "Yakimova, Mariya"]
[Black "Kirchei, Viktoriia"]
[Result "1-0"]
[ECO "B35"]
[WhiteElo "1736"]
[BlackElo "1943"]
[Annotator "NA RC"]
[PlyCount "55"]
[EventDate "2017.??.??"]
[EventType "swiss"]
[EventCountry "ROU"]
[SourceTitle "playchess.com"]
[Source "ChessBase"]
[SourceQuality "1"]
[TimeControl "40/5400+30:1800+30"]

1. e4 {[%emt 0:00:00]} c5 {[%emt 0:00:11]} 2. Nf3 {[%emt 0:00:00]} Nc6 {[%emt 0:00:09]} 3. d4 {[%emt 0:00:00]} cxd4 {[%emt 0:00:10]} 4. Nxd4 {[%emt 0:00:00]} g6 {[%emt 0:00:10]} 5. Nc3 {[%emt 0:00:00]} Bg7 {[%emt 0:00:07]} 6. Be3 {[%emt 0:00:00]} Nf6 {[%emt 0:00:19]} 7. Bc4 {[%emt 0:00:00]} O-O {[%emt 0:01:16]} 8. Bb3 {[%emt 0:00:00]} d6 {[%emt 0:00:30]} 9. f3 {[%emt 0:00:05]} Bd7 {[%emt 0:05:58]} 10. Qd2 {[%emt 0:00:12]} Nxd4 {[%emt 0:11:58]} 11. Bxd4 {[%emt 0:00:19]} Qa5 {[%emt 0:03:22]} 12. h4 {[%emt 0:07:09]} h5 {[%emt 0:04:02]} 13. O-O-O {[%emt 0:01:06]} b5 {[%emt 0:01:36]} 14. Kb1 {[%emt 0:03:40]} Rfe8 {[%emt 0:08:51]} 15. Bxf6 {[%emt 0:07:32]} exf6 {[%emt 0:05:46]} 16. Qd5 {[%emt 0:14:57]} Rf8 {[%emt 0:06:42]} 17. g4 {[%emt 0:13:01]} hxg4 {[%emt 0:09:01]} 18. h5 {[%emt 0:09:25]} Be6 {[%emt 0:04:58]} 19. Qd2 {[%emt 0:07:54]} Bxb3 {[%emt 0:05:44]} 20. axb3 {[%emt 0:04:50]} Rfd8 {[%emt 0:06:15]} 21. fxg4 {[%emt 0:11:20]} g5 {[%emt 0:02:20]} 22. Qh2 {[%emt 0:03:46]} b4 {[%emt 0:09:04]} 23. Nd5 {[%emt 0:00:36]} f5 {[%emt 0:03:28]} 24. exf5 {[%emt 0:04:21]} Bxb2 {[%emt 0:02:22]} 25. Kxb2 {[%emt 0:01:22]} Qa3+ {[%emt 0:00:05]} 26. Kb1 {[%emt 0:00:05]} Rab8 {[%emt 0:00:07]} 27. Qd2 {[%emt 0:01:13]} Rb5 {[%emt 0:00:51]} 28. Qxg5+ {[%emt 0:00:23]} 1-0

[Event "EYCC 2017"]
[Site "Mamaia"]
[Date "2017.09.13"]
[Round "8"]
[White "Goraj, Barbara"]
[Black "Ince, Safiye Oyku"]
[Result "1-0"]
[ECO "B47"]
[WhiteElo "1711"]
[BlackElo "1737"]
[Annotator "NA RC"]
[PlyCount "123"]
[EventDate "2017.??.??"]
[EventType "swiss"]
[EventCountry "ROU"]
[SourceTitle "playchess.com"]
[Source "ChessBase"]
[SourceQuality "1"]
[TimeControl "40/5400+30:1800+30"]

1. e4 {[%emt 0:00:00]} c5 {[%emt 0:00:03]} 2. Nf3 {[%emt 0:00:00]} e6 {[%emt 0:00:04]} 3. d4 {[%emt 0:00:02]} cxd4 {[%emt 0:00:03]} 4. Nxd4 {[%emt 0:00:11]} Nc6 {[%emt 0:00:03]} 5. Nc3 {[%emt 0:00:26]} Qc7 {[%emt 0:00:04]} 6. Be2 {[%emt 0:01:44]} Nf6 {[%emt 0:00:17]} 7. O-O {[%emt 0:03:03]} Be7 {[%emt 0:00:09]} 8. Be3 {[%emt 0:02:44]} O-O {[%emt 0:03:59]} 9. f4 {[%emt 0:05:28]} d6 {[%emt 0:00:10]} 10. Qe1 {[%emt 0:01:10]} Nxd4 {[%emt 0:00:25]} 11. Bxd4 {[%emt 0:00:18]} e5 {[%emt 0:00:33]} 12. Be3 {[%emt 0:09:00]} Be6 {[%emt 0:04:16]} 13. f5 {[%emt 0:01:20]} Bc4 {[%emt 0:01:05]} 14. Rd1 {[%emt 0:02:11]} Rad8 {[%emt 0:02:25]} 15. Bxc4 {[%emt 0:08:43]} Qxc4 {[%emt 0:00:05]} 16. Bg5 {[%emt 0:00:18]} Kh8 {[%emt 0:01:03]} 17. Bxf6 {[%emt 0:03:01]} Bxf6 {[%emt 0:00:03]} 18. Qe3 {[%emt 0:11:32]} Qc5 {[%emt 0:01:04]} 19. Rf3 {[%emt 0:01:12]} Bg5 {[%emt 0:04:05]} 20. Qf2 {[%emt 0:00:22]} Rfe8 {[%emt 0:04:02]} 21. a3 {[%emt 0:02:27]} Kg8 {[%emt 0:03:40]} 22. Rfd3 {[%emt 0:01:32]} Kf8 {[%emt 0:03:25]} 23. g3 {[%emt 0:03:27]} a6 {[%emt 0:03:01]} 24. h4 {[%emt 0:01:58]} Qxf2+ {[%emt 0:00:25]} 25. Kxf2 {[%emt 0:00:07]} Be7 {[%emt 0:00:05]} 26. Nd5 {[%emt 0:02:23]} Rc8 {[%emt 0:00:36]} 27. c3 {[%emt 0:00:37]} Red8 {[%emt 0:00:27]} 28. Kf3 {[%emt 0:02:06]} Ke8 {[%emt 0:01:29]} 29. a4 {[%emt 0:07:01]} Rc4 {[%emt 0:02:42]} 30. Nb6 {[%emt 0:03:33]} Rc6 {[%emt 0:00:13]} 31. a5 {[%emt 0:00:59]} Rxb6 {[%emt 0:06:47]} 32. axb6 {[%emt 0:00:11]} Kd7 {[%emt 0:00:02]} 33. c4 {[%emt 0:02:51]} Kc6 {[%emt 0:00:42]} 34. c5 {[%emt 0:02:26]} a5 {[%emt 0:01:30]} 35. Rd5 {[%emt 0:03:26]} Rd7 {[%emt 0:00:59]} 36. b3 {[%emt 0:01:52]} Bf8 {[%emt 0:01:14]} 37. Ke2 {[%emt 0:06:55]} Be7 {[%emt 0:00:08]} 38. R1d3 {[%emt 0:01:31]} Bf8 {[%emt 0:00:54]} 39. Kd1 {[%emt 0:00:40]} Kb5 {[%emt 0:00:57]} 40. cxd6+ {[%emt 0:00:00]} Kxb6 {[%emt 0:00:04]} 41. Rxe5 {[%emt 0:01:38]} Rxd6 {[%emt 0:01:07]} 42. Red5 {[%emt 0:01:08]} Kc6 {[%emt 0:00:22]} 43. Kc2 {[%emt 0:04:49]} b6 {[%emt 0:00:08]} 44. Rxd6+ {[%emt 0:02:00]} Bxd6 {[%emt 0:00:10]} 45. g4 {[%emt 0:01:28]} f6 {[%emt 0:04:07]} 46. g5 {[%emt 0:04:16]} h6 {[%emt 0:00:01]} 47. gxh6 {[%emt 0:03:24]} gxh6 {[%emt 0:00:05]} 48. Rd1 {[%emt 0:00:40]} Bg3 {[%emt 0:01:29]} 49. h5 {[%emt 0:00:38]} Bf4 {[%emt 0:00:44]} 50. Rd5 {[%emt 0:03:19]} b5 {[%emt 0:01:44]} 51. Rd8 {[%emt 0:01:24]} a4 {[%emt 0:01:15]} 52. bxa4 {[%emt 0:00:22]} bxa4 {[%emt 0:00:04]} 53. Kc3 {[%emt 0:05:14]} Kc7 {[%emt 0:03:12]} 54. Ra8 {[%emt 0:02:46]} Kd6 {[%emt 0:00:28]} 55. Rxa4 {[%emt 0:01:12]} Ke5 {[%emt 0:00:03]} 56. Kd3 {[%emt 0:00:47]} Bg5 {[%emt 0:00:04]} 57. Ra2 {[%emt 0:05:48]} Bf4 {[%emt 0:00:05]} 58. Ra5+ {[%emt 0:00:25]} Kd6 {[%emt 0:00:05]} 59. Kd4 {[%emt 0:00:58]} Be5+ {[%emt 0:00:08]} 60. Rxe5 {[%emt 0:04:03]} fxe5+ {[%emt 0:00:05]} 61. Kc4 {[%emt 0:00:11]} Kc6 {[%emt 0:00:03]} 62. f6 {[%emt 0:00:15]} 1-0

[Event "EYCC 2017"]
[Site "Mamaia"]
[Date "2017.09.13"]
[Round "8"]
[White "Karavitaki, Evaggelia"]
[Black "Alekseenko, Mariya"]
[Result "1/2-1/2"]
[ECO "B41"]
[WhiteElo "1703"]
[BlackElo "1731"]
[Annotator "NA RC"]
[PlyCount "103"]
[EventDate "2017.??.??"]
[EventType "swiss"]
[EventCountry "ROU"]
[SourceTitle "playchess.com"]
[Source "ChessBase"]
[SourceQuality "1"]
[TimeControl "40/5400+30:1800+30"]

1. e4 c5 2. Nf3 e6 3. d4 cxd4 4. Nxd4 a6 5. c4 d6 6. Nc3 Nf6 7. Be2 Be7 8. O-O Nbd7 9. Be3 Qc7 10. Qd2 b6 11. Rfc1 Bb7 12. f3 Rc8 13. a4 Ne5 14. a5 bxa5 15. Nb3 Nc6 16. Nd5 exd5 17. cxd5 Qd7 18. dxc6 Bxc6 19. Nxa5 Bb5 20. Rxc8+ Qxc8 21. Rc1 Qd7 22. Bxb5 axb5 23. Nc6 O-O 24. e5 Ne8 25. Qb4 h6 26. Bf2 g6 27. Nxe7+ Qxe7 28. exd6 Qd7 29. Bg3 Nf6 30. Be5 Ne8 31. Re1 Ng7 32. Bxg7 Kxg7 33. Qd4+ Kg8 34. Re7 Qd8 35. h3 Re8 36. Qe5 Rxe7 37. dxe7 Qe8 38. Qd6 f5 39. Qe6+ Kg7 40. Kf2 b4 41. Ke3 b3 42. Kd2 f4 43. Qd6 g5 44. Qd8 Kf7 45. Qxe8+ Kxe8 46. Kc3 Kxe7 47. Kxb3 Kd6 48. Kc4 Kc6 49. Kd4 Kd6 50. Ke4 Ke6 51. b4 Kd6 52. Kf5 1/2-1/2

[Event "EYCC 2017"]
[Site "Mamaia"]
[Date "2017.09.13"]
[Round "8"]
[White "Vetokhin, Savva"]
[Black "Hajdu, Marton Abris"]
[Result "1-0"]
[ECO "A48"]
[WhiteElo "1703"]
[BlackElo "1280"]
[Annotator "NA RC"]
[PlyCount "59"]
[EventDate "2017.??.??"]
[EventType "swiss"]
[EventCountry "ROU"]
[SourceTitle "playchess.com"]
[Source "ChessBase"]
[SourceQuality "1"]
[TimeControl "40/5400+30:1800+30"]

1. d4 {[%emt 0:00:00]} Nf6 {[%emt 0:00:09]} 2. Nf3 {[%emt 0:00:00]} g6 {[%emt 0:00:51]} 3. Bg5 {[%emt 0:00:00]} Bg7 {[%emt 0:00:07]} 4. Nbd2 {[%emt 0:00:06]} O-O {[%emt 0:01:13]} 5. c3 {[%emt 0:01:14]} d5 {[%emt 0:00:11]} 6. e3 {[%emt 0:00:08]} Nbd7 {[%emt 0:00:02]} 7. Bd3 {[%emt 0:00:25]} c5 {[%emt 0:00:50]} 8. O-O {[%emt 0:00:33]} c4 {[%emt 0:00:17]} 9. Bc2 {[%emt 0:00:08]} Nb6 {[%emt 0:00:24]} 10. e4 {[%emt 0:00:17]} dxe4 {[%emt 0:01:19]} 11. Nxe4 {[%emt 0:00:08]} Nxe4 {[%emt 0:02:34]} 12. Bxe4 {[%emt 0:00:25]} f5 {[%emt 0:08:17]} 13. Bc2 {[%emt 0:03:42]} Qd6 {[%emt 0:02:39]} 14. Re1 {[%emt 0:01:14]} e6 {[%emt 0:00:52]} 15. Qd2 {[%emt 0:02:15]} Nd5 {[%emt 0:01:08]} 16. Ne5 {[%emt 0:03:26]} b5 {[%emt 0:03:18]} 17. a4 {[%emt 0:02:28]} Ba6 {[%emt 0:09:16]} 18. axb5 {[%emt 0:02:07]} Bxb5 {[%emt 0:04:22]} 19. Bf4 {[%emt 0:04:04]} Nxf4 {[%emt 0:01:02]} 20. Qxf4 {[%emt 0:00:52]} Qe7 {[%emt 0:07:06]} 21. d5 {[%emt 0:01:14]} g5 {[%emt 0:06:33]} 22. Qg3 {[%emt 0:01:34]} f4 {[%emt 0:01:30]} 23. Qh3 {[%emt 0:00:09]} Bxe5 {[%emt 0:01:24]} 24. Rxe5 {[%emt 0:00:06]} Bd7 {[%emt 0:01:54]} 25. dxe6 {[%emt 0:00:45]} Bc6 {[%emt 0:01:39]} 26. Rxg5+ {[%emt 0:00:50]} Kh8 {[%emt 0:01:22]} 27. Rh5 {[%emt 0:00:12]} Kg8 {[%emt 0:03:40]} 28. Bxh7+ {[%emt 0:00:28]} Kg7 {[%emt 0:00:16]} 29. Qg4+ {[%emt 0:00:07]} Kf6 {[%emt 0:00:24]} 30. Qg6# 1-0